fUST/lending_fUST_20240725
["ID","MTS","AMOUNT","RATE_DAILY","PERIOD"]
[333101645,1721866241224,-1495.18,0.00013698,2]
[333101646,1721866241233,-500.0,0.00013698,2]
[333101647,1721866241244,-500.0,0.00013698,2]
[333101648,1721866241255,-500.0,0.00013698,2]
[333101649,1721866241266,-500.0,0.00013698,2]
[333101650,1721866241277,-500.0,0.00013698,2]
[333101651,1721866241287,-302.76904216,0.00013698,2]
[333101652,1721866241297,-500.0,0.00013698,2]
[333101653,1721866241308,-500.0,0.00013698,2]
[333101654,1721866241318,-500.0,0.00013698,2]
[333101655,1721866241329,-500.0,0.00013698,2]
[333101656,1721866241339,-500.0,0.00013698,2]
[333101657,1721866241350,-500.0,0.00013698,2]
[333101658,1721866241361,-500.0,0.00013698,2]
[333101659,1721866241372,-1817.05,0.00013698,2]
[333101660,1721866241384,-802.09,0.00013698,2]
[333101661,1721866241395,-500.0,0.00013698,2]
[333101662,1721866241407,-1090.74,0.00013698,2]
[333101663,1721866241418,-500.0,0.00013698,2]
[333101664,1721866241430,-500.0,0.00013698,2]
[333101665,1721866241441,-518.61,0.00013698,2]
[333101666,1721866241450,-500.0,0.00013698,2]
[333101667,1721866241461,-500.0,0.00013698,2]
[333101668,1721866241471,-500.0,0.00013698,2]
[333101669,1721866241483,-500.0,0.00013698,2]
[333101670,1721866241492,-500.0,0.00013698,2]
[333101671,1721866241502,-500.0,0.00013698,2]
[333101672,1721866241512,-504.75716021,0.00013698,2]
[333101673,1721866241521,-1705.53,0.00013698,2]
[333101674,1721866241532,-500.0,0.00013698,2]
[333101675,1721866241542,-500.0,0.00013698,2]
[333101676,1721866241552,-500.0,0.00013698,2]
[333101677,1721866241562,-1207.3,0.00013698,2]
[333101678,1721866241572,-638.11,0.00013698,2]
[333101679,1721866241583,-500.0,0.00013698,2]
[333101680,1721866241594,-1426.17,0.00013698,2]
[333101681,1721866241606,-500.0,0.00013698,2]
[333101682,1721866241617,-500.0,0.00013698,2]
[333101683,1721866241628,-500.0,0.00013698,2]
[333101684,1721866241639,-429.48027366,0.00013698,2]
[333101685,1721866241649,-783.26,0.00013698,2]
[333101686,1721866241661,-823.05,0.00013698,2]
[333101687,1721866241671,-500.0,0.00013698,2]
[333101688,1721866241683,-500.0,0.00013698,2]
[333101689,1721866241695,-519.01,0.00013698,2]
[333101690,1721866241706,-507.31093237,0.00013698,2]
[333101691,1721866241716,-1615.0,0.00013698,2]
[333101692,1721866241726,-500.0,0.00013698,2]
[333101693,1721866241736,-500.0,0.00013698,2]
[333101694,1721866241747,-816.09,0.00013698,2]
[333101695,1721866241760,-582.98,0.00013698,2]
[333101696,1721866241770,-1106.11,0.00013698,2]
[333101697,1721866241780,-500.0,0.00013698,2]
[333101698,1721866241794,-1861.17,0.00013698,2]
[333101699,1721866241807,-652.33,0.00013698,2]
[333101700,1721866241817,-500.0,0.00013698,2]
[333101701,1721866241828,-500.0,0.00013698,2]
[333101702,1721866241838,-1651.82,0.00013698,2]
[333101703,1721866241850,-500.0,0.00013698,2]
[333101704,1721866241860,-500.0,0.00013698,2]
[333101705,1721866241871,-500.0,0.00013698,2]
[333101706,1721866241881,-1819.39,0.00013698,2]
[333101707,1721866241891,-649.32103594,0.00013698,2]
[333101708,1721866241903,-536.16,0.00013698,2]
[333101709,1721866241912,-500.0,0.00013698,2]
[333101710,1721866241922,-500.0,0.00013698,2]
[333101711,1721866241932,-1124.44,0.00013698,2]
[333101712,1721866241942,-500.0,0.00013698,2]
[333101713,1721866241951,-500.0,0.00013698,2]
[333101714,1721866241961,-500.0,0.00013698,2]
[333101715,1721866241970,-500.0,0.00013698,2]
[333101716,1721866241982,-1122.09,0.00013698,2]
[333101717,1721866241993,-500.0,0.00013698,2]
[333101718,1721866242004,-500.0,0.00013698,2]
[333101719,1721866242015,-500.0,0.00013698,2]
[333101720,1721866242024,-500.0,0.00013698,2]
[333101721,1721866242034,-500.0,0.00013698,2]
[333101722,1721866242044,-500.0,0.00013698,2]
[333101723,1721866242053,-500.0,0.00013698,2]
[333101724,1721866242063,-500.0,0.00013698,2]
[333101725,1721866242072,-500.0,0.00013698,2]
[333101726,1721866242082,-500.0,0.00013698,2]
[333101727,1721866242092,-500.0,0.00013698,2]
[333101728,1721866242101,-298.57479115,0.00013698,2]
[333101729,1721866242111,-500.0,0.00013698,2]
[333101730,1721866242121,-561.36061409,0.00013698,2]
[333101731,1721866242130,-500.0,0.00013698,2]
[333101732,1721866242139,-500.0,0.00013698,2]
[333101733,1721866242149,-500.0,0.00013698,2]
[333101735,1721866242158,-500.0,0.00013698,2]
[333101736,1721866242168,-500.0,0.00013698,2]
[333101737,1721866242178,-672.4,0.00013698,2]
[333101738,1721866242187,-500.0,0.00013698,2]
[333101739,1721866242197,-500.0,0.00013698,2]
[333101740,1721866242206,-839.75,0.00013698,2]
[333101741,1721866242215,-500.0,0.00013698,2]
[333101742,1721866242225,-1867.17,0.00013698,2]
[333101743,1721866242234,-1867.17,0.00013698,2]
[333101744,1721866242244,-500.0,0.00013698,2]
[333101745,1721866242253,-1867.17,0.00013698,2]
[333101746,1721866242264,-1867.17,0.00013698,2]
[333101747,1721866242273,-1867.17,0.00013698,2]
[333101748,1721866242283,-1867.17,0.00013698,2]
[333101749,1721866242292,-1867.17,0.00013698,2]
[333101750,1721866242302,-500.0,0.00013698,2]
[333101751,1721866242312,-500.0,0.00013698,2]
[333101753,1721866242322,-1867.17,0.00013698,2]
[333101754,1721866242332,-1867.17,0.00013698,2]
[333101755,1721866242341,-1867.17,0.00013698,2]
[333101756,1721866242352,-1867.17,0.00013698,2]
[333101757,1721866242361,-500.0,0.00013698,2]
[333101758,1721866242371,-4096.13,0.00013698,2]
[333101759,1721866242381,-500.0,0.00013698,2]
[333101760,1721866242390,-245.497927,0.00013698,2]
[333101761,1721866242400,-500.0,0.00013698,2]
[333101762,1721866242410,-2180.71,0.00013698,2]
[333101763,1721866242419,-500.0,0.00013698,2]
[333101764,1721866242428,-425.57351266,0.00013698,2]
[333101765,1721866242438,-1656.52,0.00013698,2]
[333101766,1721866242448,-500.0,0.00013698,2]
[333101767,1721866242458,-500.0,0.00013698,2]
[333101768,1721866242468,-826.07,0.00013698,2]
[333101769,1721866242478,-500.0,0.00013698,2]
[333101770,1721866242487,-500.0,0.00013698,2]
[333101771,1721866242496,-500.0,0.00013698,2]
[333101772,1721866242506,-500.0,0.00013698,2]
[333101773,1721866242517,-3725.11,0.00013698,2]
[333101774,1721866242528,-500.0,0.00013698,2]
[333101775,1721866242539,-2073.57,0.00013698,2]
[333101776,1721866242551,-500.0,0.00013698,2]
[333101777,1721866242562,-500.0,0.00013698,2]
[333101778,1721866242572,-416.03299135,0.00013698,2]
[333101779,1721866242582,-500.0,0.00013698,2]
[333101780,1721866242592,-488.59552143,0.00013698,2]
[333101781,1721866242603,-1819.03,0.00013698,2]
[333101782,1721866242614,-500.0,0.00013698,2]
[333101783,1721866242624,-3639.57,0.00013698,2]
[333101784,1721866242635,-500.0,0.00013698,2]
[333101785,1721866242646,-1406.89,0.00013698,2]
[333101786,1721866242657,-1746.58,0.00013698,2]
[333101787,1721866242668,-4172.26,0.00013698,2]
[333101788,1721866242679,-226.89197565,0.00013698,2]
[333101789,1721866242691,-504.66,0.00013698,2]
[333101790,1721866242701,-677.68,0.00013698,2]
[333101791,1721866242714,-500.0,0.00013698,2]
[333101792,1721866242724,-500.0,0.00013698,2]
[333101793,1721866242735,-500.0,0.00013698,2]
[333101794,1721866242747,-567.01,0.00013698,2]
[333101795,1721866242758,-751.05,0.00013698,2]
[333101796,1721866242769,-500.0,0.00013698,2]
[333101797,1721866242780,-500.0,0.00013698,2]
[333101798,1721866242789,-690.59,0.00013698,2]
[333101799,1721866242801,-12613.61,0.00013698,2]
[333101800,1721866242810,-500.0,0.00013698,2]
[333101801,1721866242819,-500.0,0.00013698,2]
[333101802,1721866242829,-500.0,0.00013698,2]
[333101803,1721866242838,-500.0,0.00013698,2]
[333101804,1721866242848,-259.18873976,0.00013698,2]
[333101805,1721866242859,-282.88816925,0.00013698,2]
[333101806,1721866242868,-500.0,0.00013698,2]
[333101807,1721866242879,-500.0,0.00013698,2]
[333101808,1721866242889,-500.0,0.00013698,2]
[333101809,1721866242899,-500.0,0.00013698,2]
[333101810,1721866242909,-5958.86,0.00013698,2]
[333101811,1721866242919,-500.0,0.00013698,2]
[333101812,1721866242929,-500.0,0.00013698,2]
[333101813,1721866242938,-500.0,0.00013698,2]
[333101814,1721866242948,-1221.86,0.00013698,2]
[333101815,1721866242959,-500.0,0.00013698,2]
[333101816,1721866242971,-584.75802318,0.00013698,2]
[333101817,1721866242982,-503.47695568,0.00013698,2]
[333101818,1721866242993,-1414.0,0.00013698,2]
[333101819,1721866243003,-2308.91,0.00013698,2]
[333101820,1721866243013,-699.33,0.00013698,2]
[333101821,1721866243024,-500.0,0.00013698,2]
[333101822,1721866243033,-500.0,0.00013698,2]
[333101823,1721866243043,-2375.31,0.00013698,2]
[333101824,1721866243053,-778.02,0.00013698,2]
[333101825,1721866243063,-500.0,0.00013698,2]
[333101826,1721866243073,-500.0,0.00013698,2]
[333101827,1721866243082,-500.0,0.00013698,2]
[333101828,1721866243091,-500.0,0.00013698,2]
[333101829,1721866243101,-2594.18,0.00013698,2]
[333101830,1721866243111,-457.32497753,0.00013698,2]
[333101831,1721866243119,-1423.06,0.00013698,2]
[333101832,1721866243129,-500.0,0.00013698,2]
[333101833,1721866243138,-675.46,0.00013698,2]
[333101834,1721866243147,-931.49,0.00013698,2]
[333101835,1721866243156,-500.0,0.00013698,2]
[333101836,1721866243165,-500.0,0.00013698,2]
[333101837,1721866243174,-1115.12,0.00013698,2]
[333101838,1721866243184,-4217.31,0.00013698,2]
[333101839,1721866243194,-9434.7,0.00013698,2]
[333101841,1721866243204,-503.59785011,0.00013698,2]
[333101843,1721866243213,-503.42755759,0.00013698,2]
[333101845,1721866243224,-500.0,0.00013698,2]
[333101846,1721866243234,-500.0,0.00013698,2]
[333101848,1721866243243,-500.0,0.00013698,2]
[333101849,1721866243252,-500.0,0.00013698,2]
[333101850,1721866243262,-500.0,0.00013698,2]
[333101851,1721866243272,-784.59,0.00013698,2]
[333101852,1721866243282,-500.0,0.00013698,2]
[333101853,1721866243291,-683.21,0.00013698,2]
[333101854,1721866243300,-500.0,0.00013698,2]
[333101856,1721866243310,-500.0,0.00013698,2]
[333101857,1721866243319,-4828.36,0.00013698,2]
[333101858,1721866243328,-500.0,0.00013698,2]
[333101859,1721866243337,-500.0,0.00013698,2]
[333101860,1721866243347,-500.0,0.00013698,2]
[333101861,1721866243357,-500.0,0.00013698,2]
[333101862,1721866243366,-500.0,0.00013698,2]
[333101863,1721866243375,-1299.93,0.00013698,2]
[333101864,1721866243385,-500.0,0.00013698,2]
[333101865,1721866243395,-1623.49,0.00013698,2]
[333101866,1721866243405,-292.51694039,0.00013698,2]
[333101867,1721866243414,-1718.38,0.00013698,2]
[333101868,1721866243423,-1015.41,0.00013698,2]
[333101869,1721866243434,-1722.83,0.00013698,2]
[333101870,1721866243443,-500.0,0.00013698,2]
[333101871,1721866243453,-1063.58,0.00013698,2]
[333101872,1721866243463,-500.0,0.00013698,2]
[333101873,1721866243472,-500.0,0.00013698,2]
[333101874,1721866243483,-500.0,0.00013698,2]
[333101875,1721866243492,-500.0,0.00013698,2]
[333101876,1721866243502,-1952.85,0.00013698,2]
[333101877,1721866243512,-366.29564877,0.00013698,2]
[333101878,1721866243522,-852.47,0.00013698,2]
[333101879,1721866243532,-507.0263962,0.00013698,2]
[333101880,1721866243541,-500.0,0.00013698,2]
[333101881,1721866243550,-500.0,0.00013698,2]
[333101882,1721866243560,-500.0,0.00013698,2]
[333101883,1721866243569,-1063.34,0.00013698,2]
[333101884,1721866243579,-500.0,0.00013698,2]
[333101885,1721866243588,-500.0,0.00013698,2]
[333101886,1721866243597,-4066.05,0.00013698,2]
[333101887,1721866243607,-504.64394764,0.00013698,2]
[333101888,1721866243616,-8724.8,0.00013698,2]
[333101889,1721866243625,-500.0,0.00013698,2]
[333101890,1721866243635,-500.0,0.00013698,2]
[333101891,1721866243645,-500.0,0.00013698,2]
[333101892,1721866243655,-1945.06,0.00013698,2]
[333101893,1721866243665,-2032.5,0.00013698,2]
[333101894,1721866243673,-834.5,0.00013698,2]
[333101895,1721866243683,-500.0,0.00013698,2]
[333101896,1721866243693,-500.0,0.00013698,2]
[333101897,1721866243703,-500.0,0.00013698,2]
[333101898,1721866243712,-500.0,0.00013698,2]
[333101899,1721866243722,-500.0,0.00013698,2]
[333101900,1721866243731,-500.0,0.00013698,2]
[333101901,1721866243741,-500.0,0.00013698,2]
[333101903,1721866243751,-500.0,0.00013698,2]
[333101904,1721866243761,-500.0,0.00013698,2]
[333101905,1721866243771,-500.0,0.00013698,2]
[333101906,1721866243780,-500.0,0.00013698,2]
[333101907,1721866243791,-500.0,0.00013698,2]
[333101908,1721866243805,-500.0,0.00013698,2]
[333101909,1721866243815,-500.0,0.00013698,2]
[333101910,1721866243824,-500.0,0.00013698,2]
[333101911,1721866243833,-500.0,0.00013698,2]
[333101912,1721866243845,-500.0,0.00013698,2]
[333101913,1721866243854,-500.0,0.00013698,2]
[333101914,1721866243863,-500.0,0.00013698,2]
[333101915,1721866243875,-593.15868371,0.00013698,2]
[333101916,1721866243885,-500.0,0.00013698,2]
[333101917,1721866243895,-593.15868371,0.00013698,2]
[333101918,1721866243904,-401.11625069,0.00013698,2]
[333101919,1721866243914,-593.15868371,0.00013698,2]
[333101920,1721866243924,-500.0,0.00013698,2]
[333101921,1721866243935,-500.0,0.00013698,2]
[333101922,1721866243944,-593.15868371,0.00013698,2]
[333101923,1721866243954,-500.0,0.00013698,2]
[333101924,1721866243964,-500.0,0.00013698,2]
[333101925,1721866243974,-500.0,0.00013698,2]
[333101926,1721866243985,-593.15868371,0.00013698,2]
[333101927,1721866243996,-593.15868371,0.00013698,2]
[333101928,1721866244006,-593.15868371,0.00013698,2]
[333101929,1721866244018,-593.15868371,0.00013698,2]
[333101930,1721866244028,-593.15868371,0.00013698,2]
[333101931,1721866244039,-593.15868371,0.00013698,2]
[333101932,1721866244049,-491.49517069,0.00013698,2]
[333101933,1721866244060,-500.0,0.00013698,2]
[333101934,1721866244071,-593.15868371,0.00013698,2]
[333101935,1721866244082,-372.38012473,0.00013698,2]
[333101936,1721866244092,-500.0,0.00013698,2]
[333101937,1721866244102,-593.15868371,0.00013698,2]
[333101938,1721866244112,-593.15868371,0.00013698,2]
[333101939,1721866244125,-500.0,0.00013698,2]
[333101940,1721866244137,-593.15868371,0.00013698,2]
[333101941,1721866244148,-500.0,0.00013698,2]
[333101942,1721866244160,-500.0,0.00013698,2]
[333101943,1721866244172,-500.0,0.00013698,2]
[333101944,1721866244184,-500.0,0.00013698,2]
[333101945,1721866244197,-500.0,0.00013698,2]
[333101946,1721866244206,-500.0,0.00013698,2]
[333101947,1721866244215,-500.0,0.00013698,2]
[333101948,1721866244224,-500.0,0.00013698,2]
[333101949,1721866244233,-500.0,0.00013698,2]
[333101950,1721866244243,-500.0,0.00013698,2]
[333101951,1721866244252,-500.0,0.00013698,2]
[333101952,1721866244261,-650.0,0.00013698,2]
[333101953,1721866244405,-593.15868371,0.00013698,2]
[333101954,1721866244416,-500.0,0.00013698,2]
[333101955,1721866244427,-500.0,0.00013698,2]
[333101956,1721866244438,-500.0,0.00013698,2]
[333101957,1721866244450,-500.0,0.00013698,2]
[333101958,1721866244460,-649.64,0.00013698,2]
[333101959,1721866244471,-535.7,0.00013698,2]
[333101960,1721866244481,-3000.0,0.00013699,2]
[333101961,1721866244491,-790.961547,0.00013699,2]
[333101962,1721866244502,-151.0,0.00013699,2]
[333101963,1721866244513,-150.112233,0.000137,2]
[333101964,1721866244526,-150.112233,0.000137,2]
[333101965,1721866244536,-150.112233,0.000137,2]
[333101966,1721866244546,-150.112233,0.000137,2]
[333101967,1721866244556,-150.112233,0.000138,2]
[333101968,1721866244568,-150.112233,0.000138,2]
[333101969,1721866244578,-150.112233,0.000138,2]
[333101970,1721866244589,-154.82195475,0.00013826,2]
[333101971,1721866244598,-256.92215815,0.00013826,2]
[333101972,1721866244608,-1632.4490464,0.00013862,2]
[333101973,1721866244619,-45098.25782528,0.0001389,2]
[333101974,1721866244630,-150.112233,0.000139,2]
[333101975,1721866244642,-150.112233,0.000139,2]
[333101976,1721866244652,-150.112233,0.000139,2]
[333101977,1721866244662,-150.112233,0.000139,2]
[333101978,1721866244672,-1867.17,0.00013951,2]
[333101979,1721866244684,-151.0,0.00013952,2]
[333101980,1721866244694,-1090.735009,0.00013952,2]
[333101981,1721866244704,-1090.735009,0.00013952,2]
[333101982,1721866244715,-1867.17,0.00013961,2]
[333101983,1721866244725,-1867.17,0.00013961,2]
[333101984,1721866244736,-1867.17,0.00013961,2]
[333101985,1721866244746,-1867.17,0.00013961,2]
[333101986,1721866244756,-1867.17,0.00013961,2]
[333101987,1721866244766,-151.0,0.00013962,2]
[333101988,1721866244777,-151.0,0.00013962,2]
[333101989,1721866244788,-151.0,0.00013962,2]
[333101990,1721866244801,-151.0,0.00013962,2]
[333101991,1721866244814,-151.0,0.00013962,2]
[333101992,1721866244825,-465.528082,0.00013962,2]
[333101993,1721866244835,-465.528082,0.00013962,2]
[333101994,1721866244846,-1222.754355,0.00013962,2]
[333101995,1721866244856,-151.0,0.00013962,2]
[333101996,1721866244866,-1222.754355,0.00013962,2]
[333101997,1721866244881,-151.0,0.00013962,2]
[333101998,1721866244891,-383.004153,0.00013962,2]
[333101999,1721866244901,-383.004153,0.00013962,2]
[333102000,1721866244912,-151.0,0.00013962,2]
[333102001,1721866244925,-151.0,0.00013962,2]
[333102002,1721866244938,-151.0,0.00013962,2]
[333102003,1721866244948,-151.0,0.00013962,2]
[333102004,1721866244960,-330.513647,0.00013962,2]
[333102005,1721866244971,-330.513647,0.00013962,2]
[333102006,1721866244982,-151.0,0.00013962,2]
[333102007,1721866244994,-985.605703,0.00013962,2]
[333102008,1721866245005,-985.605703,0.00013962,2]
[333102009,1721866245016,-100072.52100532,0.00013971,5]
[333102010,1721866245042,-63655.64794472,0.00013971,5]
[333102011,1721866245055,-275.886566,0.00013971,2]
[333102012,1721866245066,-275.886566,0.00013971,2]
[333102013,1721866245077,-336.123408,0.00013971,2]
[333102014,1721866245089,-336.123408,0.00013971,2]
[333102015,1721866245099,-1867.17,0.00013971,2]
[333102016,1721866245110,-1867.17,0.00013971,2]
[333102017,1721866245121,-1867.17,0.00013971,2]
[333102018,1721866245131,-1867.17,0.00013971,2]
[333102019,1721866245142,-1867.17,0.00013971,2]
[333102020,1721866245152,-1867.17,0.00013971,2]
[333102021,1721866245161,-1867.25999999,0.00013971,2]
[333102022,1721866245170,-151.0,0.00013972,2]
[333102023,1721866245181,-151.0,0.00013972,2]
[333102024,1721866245191,-151.0,0.00013972,2]
[333102025,1721866245202,-496.65481811,0.00013972,2]
[333102026,1721866245212,-500.0,0.00013972,2]
[333102027,1721866245223,-600.93614671,0.00013972,2]
[333102028,1721866245233,-500.0,0.00013972,2]
[333102029,1721866245243,-500.0,0.00013972,2]
[333102030,1721866245253,-500.0,0.00013972,2]
[333102031,1721866245264,-500.0,0.00013972,2]
[333102032,1721866245273,-500.0,0.00013972,2]
[333102033,1721866245284,-423.60188235,0.00013972,2]
[333102034,1721866245294,-500.0,0.00013972,2]
[333102035,1721866245304,-286.0,0.00013972,2]
[333102036,1721866245313,-500.0,0.00013972,2]
[333102037,1721866245323,-151.0,0.00013972,2]
[333102038,1721866245333,-500.0,0.00013972,2]
[333102039,1721866245343,-500.0,0.00013972,2]
[333102040,1721866245353,-500.0,0.00013972,2]
[333102041,1721866245363,-259.59583348,0.00013972,2]
[333102042,1721866245372,-500.0,0.00013972,2]
[333102043,1721866245382,-151.0,0.00013972,2]
[333102044,1721866245393,-500.0,0.00013972,2]
[333102045,1721866245404,-500.0,0.00013972,2]
[333102046,1721866245415,-500.0,0.00013972,2]
[333102047,1721866245425,-500.0,0.00013972,2]
[333102048,1721866245436,-500.0,0.00013972,2]
[333102049,1721866245449,-500.0,0.00013972,2]
[333102050,1721866245459,-500.0,0.00013972,2]
[333102051,1721866245469,-500.0,0.00013972,2]
[333102052,1721866245479,-500.0,0.00013972,2]
[333102053,1721866245490,-499.99813913,0.00013972,2]
[333102054,1721866245500,-500.0,0.00013972,2]
[333102055,1721866245512,-500.0,0.00013972,2]
[333102056,1721866245523,-151.0,0.00013972,2]
[333102057,1721866245533,-151.0,0.00013972,2]
[333102058,1721866245543,-1225.34,0.00013972,2]
[333102059,1721866245554,-500.0,0.00013972,2]
[333102060,1721866245566,-500.0,0.00013972,2]
[333102061,1721866245576,-500.0,0.00013972,2]
[333102062,1721866245588,-500.0,0.00013972,2]
[333102063,1721866245599,-500.0,0.00013972,2]
[333102064,1721866245610,-500.0,0.00013972,2]
[333102065,1721866245620,-500.0,0.00013972,2]
[333102066,1721866245631,-3259.73,0.00013972,2]
[333102067,1721866245643,-529.64,0.00013972,2]
[333102068,1721866245654,-500.0,0.00013972,2]
[333102069,1721866245667,-500.0,0.00013972,2]
[333102070,1721866245678,-500.0,0.00013972,2]
[333102071,1721866245691,-1576.59,0.00013972,2]
[333102072,1721866245701,-608.09084378,0.00013972,2]
[333102073,1721866245711,-1082.63,0.00013972,2]
[333102074,1721866245721,-535.05556206,0.00013972,2]
[333102075,1721866245731,-500.0,0.00013972,2]
[333102076,1721866245741,-500.0,0.00013972,2]
[333102077,1721866245750,-500.0,0.00013972,2]
[333102078,1721866245760,-275.886566,0.00013972,2]
[333102079,1721866245770,-308.355804,0.00013972,2]
[333102080,1721866245780,-308.355804,0.00013972,2]
[333102081,1721866245789,-229.49223681,0.00013972,2]
[333102082,1721866245805,-500.0,0.00013972,2]
[333102083,1721866245814,-500.0,0.00013972,2]
[333102084,1721866245824,-308.355804,0.00013972,2]
[333102085,1721866245834,-275.886566,0.00013972,2]
[333102086,1721866245845,-500.0,0.00013972,2]
[333102087,1721866245854,-308.355804,0.00013972,2]
[333102088,1721866245864,-505.37,0.00013972,2]
[333102089,1721866245874,-518.34,0.00013972,2]
[333102090,1721866245884,-500.0,0.00013972,2]
[333102091,1721866245893,-608.3971694,0.00013972,2]
[333102092,1721866245903,-500.0,0.00013972,2]
[333102093,1721866245913,-500.0,0.00013972,2]
[333102094,1721866245923,-425.98261447,0.00013972,2]
[333102095,1721866245933,-500.0,0.00013972,2]
[333102096,1721866245943,-625.59931749,0.00013972,2]
[333102097,1721866245955,-500.0,0.00013972,2]
[333102098,1721866245966,-500.0,0.00013972,2]
[333102099,1721866245976,-756.29,0.00013972,2]
[333102100,1721866245986,-246.08483113,0.00013972,2]
[333102101,1721866245997,-1887.07,0.00013972,2]
[333102102,1721866246006,-697.9,0.00013972,2]
[333102103,1721866246017,-605.82,0.00013972,2]
[333102104,1721866246027,-500.0,0.00013972,2]
[333102105,1721866246036,-1212.05,0.00013972,2]
[333102106,1721866246047,-500.0,0.00013972,2]
[333102107,1721866246057,-500.0,0.00013972,2]
[333102108,1721866246067,-500.0,0.00013972,2]
[333102109,1721866246076,-500.0,0.00013972,2]
[333102110,1721866246085,-1821.63,0.00013972,2]
[333102111,1721866246095,-500.0,0.00013972,2]
[333102112,1721866246105,-1342.12,0.00013972,2]
[333102113,1721866246114,-1495.18,0.00013972,2]
[333102114,1721866246123,-500.0,0.00013972,2]
[333102115,1721866246133,-500.0,0.00013972,2]
[333102116,1721866246143,-518.12237967,0.00013972,2]
[333102117,1721866246153,-500.0,0.00013972,2]
[333102118,1721866246162,-449.97490833,0.00013972,2]
[333102119,1721866246172,-500.0,0.00013972,2]
[333102120,1721866246183,-500.0,0.00013972,2]
[333102121,1721866246193,-500.0,0.00013972,2]
[333102122,1721866246203,-500.0,0.00013972,2]
[333102123,1721866246212,-500.0,0.00013972,2]
[333102124,1721866246222,-500.0,0.00013972,2]
[333102125,1721866246231,-500.0,0.00013972,2]
[333102126,1721866246241,-1817.05,0.00013972,2]
[333102127,1721866246251,-802.09,0.00013972,2]
[333102128,1721866246260,-1090.74,0.00013972,2]
[333102129,1721866246270,-518.61,0.00013972,2]
[333102130,1721866246280,-504.07908187,0.00013972,2]
[333102131,1721866246291,-500.0,0.00013972,2]
[333102132,1721866246301,-329.23023946,0.00013972,2]
[333102133,1721866246311,-500.0,0.00013972,2]
[333102134,1721866246320,-336.123408,0.00013972,2]
[333102135,1721866246330,-1705.53,0.00013972,2]
[333102136,1721866246339,-500.0,0.00013972,2]
[333102137,1721866246349,-500.0,0.00013972,2]
[333102138,1721866246359,-336.123408,0.00013972,2]
[333102139,1721866246369,-500.0,0.00013972,2]
[333102140,1721866246378,-1207.3,0.00013972,2]
[333102141,1721866246388,-638.11,0.00013972,2]
[333102142,1721866246397,-151.0,0.00013972,2]
[333102143,1721866246407,-500.0,0.00013972,2]
[333102144,1721866246416,-1426.17,0.00013972,2]
[333102145,1721866246426,-500.0,0.00013972,2]
[333102146,1721866246437,-500.0,0.00013972,2]
[333102148,1721866246446,-500.0,0.00013972,2]
[333102150,1721866246456,-783.26,0.00013972,2]
[333102152,1721866246466,-823.05,0.00013972,2]
[333102154,1721866246476,-500.0,0.00013972,2]
[333102156,1721866246485,-519.01,0.00013972,2]
[333102158,1721866246495,-1615.0,0.00013972,2]